[Event "SixDays Budapest GM-B January 2024"]
[Site "Budapest"]
[Date "2024.01.31"]
[Round "8.2"]
[White "Varga, Zoltan"]
[Black "Coenen, Michael"]
[Result "1-0"]
[ECO "A13"]
[WhiteElo "2366"]
[BlackElo "2330"]
[Annotator "RC"]
[PlyCount "189"]
[EventDate "2024.01.26"]
[EventType "tourn"]
[EventCountry "HUN"]
[SourceTitle "playchess.com"]
[Source "ChessBase"]
[SourceQuality "1"]
[TimeControl "5400+30"]

1. c4 {[%emt 0:11:57]} e6 {[%emt 0:00:18]} 2. g3 {[%emt 0:00:16]} Nf6 {[%emt 0:00:18]} 3. Bg2 {[%emt 0:00:07]} d5 {[%emt 0:00:05]} 4. Nf3 {[%emt 0:00:06]} Be7 {[%emt 0:00:06]} 5. d4 {[%emt 0:00:24]} O-O {[%emt 0:00:14]} 6. Nbd2 {[%emt 0:00:41]} b6 {[%emt 0:00:26]} 7. cxd5 {[%emt 0:00:10]} exd5 {[%emt 0:00:06]} 8. O-O {[%emt 0:00:04]} c5 {[%emt 0:00:31]} 9. dxc5 {[%emt 0:02:36]} bxc5 {[%emt 0:01:07]} 10. e4 {[%emt 0:04:16]} Ba6 {[%emt 0:12:55]} 11. e5 {[%emt 0:01:17]} Ne8 {[%emt 0:02:49]} 12. Re1 {[%emt 0:03:59]} Nc7 {[%emt 0:00:19]} 13. Nb3 {[%emt 0:01:22]} Nc6 {[%emt 0:02:39]} 14. Nh4 {[%emt 0:06:52]} Qd7 {[%emt 0:16:36]} 15. Be3 {[%emt 0:10:00]} d4 {[%emt 0:13:17]} 16. Rc1 {[%emt 0:03:16]} Rad8 {[%emt 0:02:05]} 17. Bxc6 {[%emt 0:07:22]} Qxc6 {[%emt 0:00:03]} 18. Nf5 {[%emt 0:00:05]} Qd7 {[%emt 0:26:34]} 19. Qg4 {[%emt 0:03:12]} Ne6 {[%emt 0:00:06]} 20. Bh6 {[%emt 0:12:24]} g6 {[%emt 0:06:17]} 21. Nxe7+ {[%emt 0:02:11]} Qxe7 {[%emt 0:00:02]} 22. Bxf8 {[%emt 0:00:03]} Kxf8 {[%emt 0:00:13]} 23. Qf3 {[%emt 0:07:07]} d3 {[%emt 0:06:43]} 24. Qe3 {[%emt 0:02:15]} c4 {[%emt 0:03:25]} 25. Nd2 {[%emt 0:00:15]} Nd4 {[%emt 0:01:42]} 26. Nxc4 {[%emt 0:01:44]} Qb7 {[%emt 0:00:44]} 27. e6 {[%emt 0:03:33]} Nf3+ {[%emt 0:02:06]} 28. Qxf3 {[%emt 0:00:26]} Qxf3 {[%emt 0:00:03]} 29. e7+ {[%emt 0:00:06]} Ke8 {[%emt 0:00:30]} 30. exd8=Q+ {[%emt 0:00:06]} Kxd8 {[%emt 0:00:02]} 31. Re3 {[%emt 0:00:46]} Qd5 {[%emt 0:00:41]} 32. Ne5 {[%emt 0:01:50]} d2 {[%emt 0:02:43]} 33. Rd1 {[%emt 0:00:53]} Kc7 {[%emt 0:00:35]} 34. Rc3+ {[%emt 0:02:01]} Kb7 {[%emt 0:00:35]} 35. Nd3 {[%emt 0:03:18]} Bxd3 {[%emt 0:00:30]} 36. Rxd2 {[%emt 0:00:02]} Qxa2 {[%emt 0:00:26]} 37. Rdxd3 {[%emt 0:00:01]} a5 {[%emt 0:00:20]} 38. Kg2 {[%emt 0:04:09]} a4 {[%emt 0:00:25]} 39. Rd2 {[%emt 0:00:54]} Qe6 {[%emt 0:00:43]} 40. h4 {[%emt 0:00:06]} Qe4+ {[%emt 0:00:32]} 41. Kh2 {[%emt 0:00:04]} Kb6 {[%emt 0:00:29]} 42. Re3 {[%emt 0:00:55]} Qb4 {[%emt 0:00:33]} 43. Rc2 {[%emt 0:00:18]} Qd4 {[%emt 0:00:16]} 44. Re7 {[%emt 0:00:28]} Qf6 {[%emt 0:00:35]} 45. Re4 {[%emt 0:01:23]} Qf5 {[%emt 0:00:35]} 46. Rce2 {[%emt 0:00:29]} Qf3 {[%emt 0:00:22]} 47. Kg1 {[%emt 0:01:28]} Kb5 {[%emt 0:00:33]} 48. Re5+ {[%emt 0:00:21]} Kb6 {[%emt 0:00:01]} 49. Rd2 {[%emt 0:00:26]} Qc6 {[%emt 0:00:51]} 50. Red5 {[%emt 0:00:24]} Qc1+ {[%emt 0:00:37]} 51. Kh2 {[%emt 0:00:02]} Qc4 {[%emt 0:00:28]} 52. Rd6+ {[%emt 0:00:21]} Kb7 {[%emt 0:00:41]} 53. Rf6 {[%emt 0:00:23]} Kc7 {[%emt 0:00:31]} 54. Rf4 {[%emt 0:01:04]} Qb3 {[%emt 0:00:05]} 55. Rdd4 {[%emt 0:00:34]} f5 {[%emt 0:00:07]} 56. Rb4 {[%emt 0:00:59]} Qa2 {[%emt 0:00:19]} 57. Rf3 {[%emt 0:01:39]} Qa1 {[%emt 0:00:57]} 58. Kg2 {[%emt 0:00:30]} Qd1 {[%emt 0:00:20]} 59. Rff4 {[%emt 0:00:35]} Qd5+ {[%emt 0:01:12]} 60. Kh2 {[%emt 0:00:02]} Qa2 {[%emt 0:00:10]} 61. Rxa4 Qxb2 {[%emt 0:00:02]} 62. Ra7+ {[%emt 0:03:54]} Kd6 {[%emt 0:00:05]} 63. Rxh7 {[%emt 0:00:02]} Ke6 {[%emt 0:00:47]} 64. Ra7 {[%emt 0:00:26]} Qb6 {[%emt 0:00:56]} 65. Ra3 {[%emt 0:00:29]} Kf6 {[%emt 0:00:46]} 66. Raf3 {[%emt 0:00:03]} Qb8 {[%emt 0:00:43]} 67. Kg2 {[%emt 0:00:19]} Qh8 {[%emt 0:00:32]} 68. Ra4 {[%emt 0:01:41]} Qe8 {[%emt 0:00:32]} 69. Ra6+ {[%emt 0:00:18]} Kg7 {[%emt 0:00:08]} 70. Re3 {[%emt 0:00:28]} Qd7 {[%emt 0:00:46]} 71. Ree6 {[%emt 0:02:27]} Qd5+ {[%emt 0:00:07]} 72. Kh2 {[%emt 0:00:16]} Qf3 {[%emt 0:00:30]} 73. Ra2 {[%emt 0:00:53]} Kh7 {[%emt 0:00:58]} 74. Re3 {[%emt 0:00:08]} Qb7 {[%emt 0:00:13]} 75. Ra4 {[%emt 0:00:24]} Kh6 {[%emt 0:00:31]} 76. Rf4 {[%emt 0:00:04]} Qd7 {[%emt 0:00:30]} 77. Re5 {[%emt 0:00:15]} Qd6 {[%emt 0:00:21]} 78. Re8 {[%emt 0:00:13]} Qd7 {[%emt 0:00:35]} 79. Rh8+ {[%emt 0:00:20]} Kg7 {[%emt 0:00:01]} 80. Rb8 {[%emt 0:00:05]} Qa7 {[%emt 0:00:16]} 81. Rbb4 {[%emt 0:00:54]} Qd7 {[%emt 0:00:45]} 82. h5 {[%emt 0:01:07]} g5 {[%emt 0:00:47]} 83. Rfd4 {[%emt 0:00:01]} Qc6 {[%emt 0:00:39]} 84. Rb8 {[%emt 0:01:11]} Qc7 {[%emt 0:00:49]} 85. Rdd8 {[%emt 0:00:52]} Qc5 {[%emt 0:00:35]} 86. Rd7+ {[%emt 0:00:32]} Kf6 {[%emt 0:00:03]} 87. Rb2 {[%emt 0:00:21]} Qc6 {[%emt 0:00:40]} 88. Rbd2 {[%emt 0:00:21]} Qf3 {[%emt 0:00:29]} 89. h6 {[%emt 0:00:25]} f4 {[%emt 0:00:37]} 90. h7 {[%emt 0:00:43]} Qh5+ {[%emt 0:00:33]} 91. Kg1 {[%emt 0:00:18]} f3 {[%emt 0:00:35]} 92. R2d3 {[%emt 0:00:48]} Ke6 {[%emt 0:00:34]} 93. Rg7 {[%emt 0:01:20]} g4 {[%emt 0:00:24]} 94. Rxg4 {[%emt 0:00:37]} Qxh7 {[%emt 0:00:36]} 95. Rxf3 {[%emt 0:00:03]} 1-0

[Event "SixDays Budapest GM-B January 2024"]
[Site "Budapest"]
[Date "2024.01.31"]
[Round "8.3"]
[White "Celik, Hasan Huseyin"]
[Black "Gombocz, Ferenc Jr."]
[Result "1/2-1/2"]
[ECO "D12"]
[WhiteElo "2436"]
[BlackElo "2366"]
[Annotator "RC"]
[PlyCount "159"]
[EventDate "2024.01.26"]
[EventType "tourn"]
[EventCountry "HUN"]
[SourceTitle "playchess.com"]
[Source "ChessBase"]
[SourceQuality "1"]
[TimeControl "5400+30"]

1. d4 {[%emt 0:04:53]} d5 {[%emt 0:00:03]} 2. c4 {[%emt 0:00:09]} c6 {[%emt 0:00:03]} 3. Nf3 {[%emt 0:00:06]} Nf6 {[%emt 0:00:03]} 4. e3 {[%emt 0:00:06]} Bf5 {[%emt 0:00:15]} 5. cxd5 {[%emt 0:00:43]} cxd5 {[%emt 0:00:11]} 6. Qb3 {[%emt 0:00:10]} Qc8 {[%emt 0:03:09]} 7. Bd2 {[%emt 0:00:37]} Nc6 {[%emt 0:08:01]} 8. Bb5 {[%emt 0:00:13]} Bd7 {[%emt 0:00:47]} 9. O-O {[%emt 0:03:15]} e6 {[%emt 0:00:34]} 10. Rc1 {[%emt 0:01:23]} Bd6 {[%emt 0:04:04]} 11. Bxc6 {[%emt 0:11:44]} Bxc6 {[%emt 0:00:18]} 12. Bb4 {[%emt 0:00:13]} Qc7 {[%emt 0:00:41]} 13. Nbd2 {[%emt 0:04:53]} Bxb4 {[%emt 0:01:41]} 14. Qxb4 {[%emt 0:00:03]} Qe7 {[%emt 0:00:05]} 15. Qb3 {[%emt 0:07:29]} Nd7 {[%emt 0:00:34]} 16. Rc3 {[%emt 0:01:28]} O-O {[%emt 0:00:42]} 17. Rac1 {[%emt 0:00:11]} f6 {[%emt 0:01:09]} 18. h3 {[%emt 0:03:03]} Nb6 {[%emt 0:00:32]} 19. Qa3 {[%emt 0:02:54]} Qxa3 {[%emt 0:02:57]} 20. Rxa3 {[%emt 0:00:01]} Rfc8 {[%emt 0:01:00]} 21. Rac3 {[%emt 0:02:19]} Bd7 {[%emt 0:01:56]} 22. b3 {[%emt 0:00:49]} Rxc3 {[%emt 0:00:16]} 23. Rxc3 {[%emt 0:00:02]} Rc8 {[%emt 0:00:10]} 24. Nb1 {[%emt 0:02:20]} Rxc3 {[%emt 0:00:36]} 25. Nxc3 {[%emt 0:00:02]} Nc8 {[%emt 0:00:15]} 26. Ne1 {[%emt 0:00:27]} Nd6 {[%emt 0:00:24]} 27. Nd3 {[%emt 0:00:13]} b6 {[%emt 0:00:07]} 28. g4 {[%emt 0:01:19]} Nb5 {[%emt 0:04:48]} 29. Nxb5 {[%emt 0:05:32]} Bxb5 {[%emt 0:00:00]} 30. Nc1 {[%emt 0:00:20]} Kf7 {[%emt 0:00:10]} 31. f4 {[%emt 0:02:29]} a5 {[%emt 0:07:22]} 32. a3 {[%emt 0:00:45]} e5 {[%emt 0:02:40]} 33. Na2 {[%emt 0:03:35]} g5 {[%emt 0:08:40]} 34. Nc3 {[%emt 0:05:09]} Bc6 {[%emt 0:00:05]} 35. Kf2 {[%emt 0:03:56]} e4 {[%emt 0:03:56]} 36. b4 {[%emt 0:04:34]} axb4 {[%emt 0:00:17]} 37. axb4 {[%emt 0:00:01]} b5 {[%emt 0:00:10]} 38. Kg3 {[%emt 0:00:40]} h6 {[%emt 0:00:16]} 39. Nb1 {[%emt 0:00:46]} Bb7 {[%emt 0:01:22]} 40. Nd2 {[%emt 0:00:10]} Ke7 {[%emt 0:00:15]} 41. Nb3 {[%emt 0:00:29]} Kf7 {[%emt 0:00:18]} 42. Nc5 {[%emt 0:00:44]} Bc8 {[%emt 0:00:05]} 43. Nb3 {[%emt 0:00:22]} Bb7 {[%emt 0:00:08]} 44. Nc1 {[%emt 0:00:31]} Kg7 {[%emt 0:00:22]} 45. Ne2 {[%emt 0:00:18]} Kf7 {[%emt 0:00:22]} 46. h4 {[%emt 0:00:20]} Bc6 {[%emt 0:00:50]} 47. Nc3 {[%emt 0:00:41]} Kg7 {[%emt 0:00:44]} 48. Kh3 {[%emt 0:00:27]} Kf7 {[%emt 0:00:27]} 49. Nd1 {[%emt 0:00:32]} Bb7 {[%emt 0:00:25]} 50. Kg2 {[%emt 0:00:38]} Kg7 {[%emt 0:00:19]} 51. Nf2 {[%emt 0:00:46]} Kg6 {[%emt 0:00:24]} 52. Kg3 {[%emt 0:00:18]} Bc6 {[%emt 0:00:19]} 53. Nh3 {[%emt 0:01:17]} Bb7 {[%emt 0:00:16]} 54. Ng1 {[%emt 0:00:12]} Bc6 {[%emt 0:00:17]} 55. Ne2 {[%emt 0:00:10]} Bb7 {[%emt 0:00:21]} 56. Kh3 {[%emt 0:00:42]} Bc6 {[%emt 0:00:36]} 57. Ng3 {[%emt 0:00:11]} Bd7 {[%emt 0:00:12]} 58. Nf1 {[%emt 0:01:36]} Bc6 {[%emt 0:01:19]} 59. Kg3 {[%emt 0:00:26]} Bb7 {[%emt 0:00:23]} 60. Nd2 {[%emt 0:00:34]} Kg7 {[%emt 0:00:51]} 61. Nb3 {[%emt 0:00:38]} Kf7 {[%emt 0:00:28]} 62. Na5 {[%emt 0:00:23]} Ba8 {[%emt 0:00:11]} 63. Nb3 {[%emt 0:00:11]} Bb7 {[%emt 0:00:04]} 64. Nd2 {[%emt 0:00:11]} Kg7 {[%emt 0:00:16]} 65. Nb1 {[%emt 0:00:10]} Bc6 {[%emt 0:00:25]} 66. Na3 {[%emt 0:00:18]} Kf7 {[%emt 0:00:28]} 67. Nc2 {[%emt 0:00:04]} Kg7 {[%emt 0:00:25]} 68. Na1 {[%emt 0:00:07]} Bb7 {[%emt 0:00:06]} 69. Nb3 {[%emt 0:00:05]} Kf7 {[%emt 0:00:09]} 70. Nc1 {[%emt 0:00:06]} Kg7 {[%emt 0:00:50]} 71. Kg2 {[%emt 0:00:37]} Kf7 {[%emt 0:01:36]} 72. Kh3 {[%emt 0:00:11]} Kg6 {[%emt 0:00:20]} 73. Kg3 {[%emt 0:00:04]} Kf7 {[%emt 0:01:05]} 74. Kh2 {[%emt 0:00:29]} Kg6 {[%emt 0:00:47]} 75. Kh3 {[%emt 0:00:13]} Kg7 {[%emt 0:00:56]} 76. Ne2 {[%emt 0:00:36]} Kg6 {[%emt 0:00:23]} 77. Kg2 {[%emt 0:00:00]} Bc6 {[%emt 0:00:20]} 78. Ng3 {[%emt 0:00:21]} Bd7 {[%emt 0:00:08]} 79. Kh3 {[%emt 0:00:12]} Bc8 {[%emt 0:00:19]} 80. f5+ {[%emt 0:00:18]} 1/2-1/2

[Event "SixDays Budapest GM-B January 2024"]
[Site "Budapest"]
[Date "2024.01.31"]
[Round "8.4"]
[White "Pang, Tao"]
[Black "Kaczur, Florian"]
[Result "1/2-1/2"]
[ECO "D14"]
[WhiteElo "2430"]
[BlackElo "2506"]
[Annotator "TA"]
[PlyCount "26"]
[EventDate "2024.01.26"]
[EventType "tourn"]
[EventCountry "HUN"]
[SourceTitle "playchess.com"]
[Source "ChessBase"]
[SourceQuality "1"]
[TimeControl "5400+30"]

{[%evp 21,26,0,0,0,0,0,0]} 1. d4 {[%emt 0:00:01]} c6 {[%emt 0:00:03]} 2. c4 {[%emt 0:00:03]} Nf6 {[%emt 0:00:04]} 3. Nf3 {[%emt 0:00:02]} d5 {[%emt 0:00:07]} 4. cxd5 {[%emt 0:00:02]} cxd5 {[%emt 0:00:04]} 5. Nc3 {[%emt 0:00:02]} Nc6 {[%emt 0:00:07]} 6. Bf4 {[%emt 0:00:02]} Nh5 {[%emt 0:00:08]} 7. Bd2 {[%emt 0:00:08]} Nf6 {[%emt 0:00:05]} 8. Bf4 {[%emt 0:00:03]} Bf5 {[%emt 0:00:09]} 9. e3 {[%emt 0:00:04]} e6 {[%emt 0:00:05]} 10. Bd3 {[%emt 0:00:02]} Bxd3 {[%emt 0:00:05]} 11. Qxd3 {[%emt 0:00:02]} Bd6 {[%emt 0:00:08] The position is equal.} 12. Bxd6 {[%emt 0:00:03]} Qxd6 {[%emt 0:00:05]} 13. O-O {[%emt 0:00:03]} O-O {[%emt 0:00:05] A rather calm draw.   OK:         	White=1     	Black=1} 1/2-1/2

[Event "SixDays Budapest GM-B January 2024"]
[Site "Budapest"]
[Date "2024.01.31"]
[Round "8.5"]
[White "Dau Khuong Duy"]
[Black "Pap, Misa"]
[Result "1/2-1/2"]
[ECO "C60"]
[WhiteElo "2309"]
[BlackElo "2422"]
[Annotator "RC"]
[PlyCount "157"]
[EventDate "2024.01.26"]
[EventType "tourn"]
[EventCountry "HUN"]
[SourceTitle "playchess.com"]
[Source "ChessBase"]
[SourceQuality "1"]
[TimeControl "5400+30"]

1. e4 {[%emt 0:00:04]} e5 {[%emt 0:00:05]} 2. Nf3 {[%emt 0:00:09]} Nc6 {[%emt 0:00:07]} 3. Bb5 {[%emt 0:00:30]} Nge7 {[%emt 0:00:26]} 4. O-O {[%emt 0:01:28]} g6 {[%emt 0:01:18]} 5. d4 {[%emt 0:02:03]} exd4 {[%emt 0:00:31]} 6. Nxd4 {[%emt 0:06:20]} Bg7 {[%emt 0:00:08]} 7. Be3 {[%emt 0:00:27]} a6 {[%emt 0:02:50]} 8. Bxc6 {[%emt 0:03:22]} dxc6 {[%emt 0:04:55]} 9. Nc3 {[%emt 0:00:37]} O-O {[%emt 0:01:02]} 10. Nde2 {[%emt 0:00:38]} b6 {[%emt 0:01:58]} 11. Qc1 {[%emt 0:01:57]} f5 {[%emt 0:10:35]} 12. f3 {[%emt 0:34:01]} fxe4 {[%emt 0:02:35]} 13. fxe4 {[%emt 0:00:07]} Be6 {[%emt 0:00:10]} 14. Rd1 {[%emt 0:02:46]} Qe8 {[%emt 0:13:41]} 15. Bd4 {[%emt 0:02:53]} c5 {[%emt 0:01:35]} 16. Bxg7 {[%emt 0:00:07]} Kxg7 {[%emt 0:00:04]} 17. Qg5 {[%emt 0:03:54]} Nc6 {[%emt 0:06:10]} 18. Nf4 {[%emt 0:05:41]} Bg8 {[%emt 0:08:58]} 19. Rf1 {[%emt 0:04:11]} Qe5 {[%emt 0:04:43]} 20. Qxe5+ {[%emt 0:01:34]} Nxe5 {[%emt 0:00:05]} 21. Nfd5 {[%emt 0:00:58]} Rfc8 {[%emt 0:07:56]} 22. Ne7 {[%emt 0:02:02]} Rd8 {[%emt 0:00:26]} 23. Nxg8 {[%emt 0:01:13]} Rxg8 {[%emt 0:06:13]} 24. Nd5 {[%emt 0:01:02]} Rgc8 {[%emt 0:00:39]} 25. Rad1 {[%emt 0:00:54]} b5 {[%emt 0:00:25]} 26. b3 {[%emt 0:10:14]} c4 {[%emt 0:12:11]} 27. h3 {[%emt 0:03:34]} cxb3 {[%emt 0:00:26]} 28. cxb3 {[%emt 0:00:31]} Ra7 {[%emt 0:00:39]} 29. Nf4 {[%emt 0:01:22]} Re8 {[%emt 0:00:21]} 30. Rd5 {[%emt 0:01:26]} c6 {[%emt 0:03:30]} 31. Rd6 {[%emt 0:00:15]} Rae7 {[%emt 0:01:26]} 32. Rc1 {[%emt 0:00:27]} a5 {[%emt 0:01:40]} 33. Rc2 {[%emt 0:00:56]} Kh6 {[%emt 0:00:26]} 34. Nd3 {[%emt 0:01:04]} Nf7 {[%emt 0:01:25]} 35. Rdxc6 {[%emt 0:00:27]} Rxe4 {[%emt 0:00:12]} 36. R6c5 {[%emt 0:00:33]} Nd6 {[%emt 0:00:32]} 37. Nf2 {[%emt 0:01:01]} Re1+ {[%emt 0:00:36]} 38. Kh2 {[%emt 0:00:06]} R8e7 {[%emt 0:02:00]} 39. Ng4+ {[%emt 0:00:48]} Kg7 {[%emt 0:00:06]} 40. Rc7 {[%emt 0:00:05]} h5 {[%emt 0:01:19]} 41. Rxe7+ {[%emt 0:00:50]} Rxe7 {[%emt 0:00:05]} 42. Nf2 {[%emt 0:00:03]} b4 {[%emt 0:00:19]} 43. g4 {[%emt 0:00:52]} h4 {[%emt 0:00:24]} 44. Kg2 {[%emt 0:00:22]} Re3 {[%emt 0:00:42]} 45. Kf1 {[%emt 0:01:17]} Kf6 {[%emt 0:01:51]} 46. Rc5 {[%emt 0:02:10]} Re5 {[%emt 0:01:43]} 47. Rc6 {[%emt 0:00:35]} Ke6 {[%emt 0:00:50]} 48. Ra6 {[%emt 0:01:25]} Kd7 {[%emt 0:00:47]} 49. Nd3 {[%emt 0:00:35]} Re3 {[%emt 0:00:15]} 50. Nf2 {[%emt 0:00:04]} Re5 {[%emt 0:00:37]} 51. Nd3 {[%emt 0:00:06]} Rb5 {[%emt 0:00:20]} 52. Ke2 {[%emt 0:00:51]} g5 {[%emt 0:00:27]} 53. Ke3 {[%emt 0:00:45]} Rd5 {[%emt 0:00:03]} 54. Ra8 {[%emt 0:01:03]} Kc6 {[%emt 0:00:49]} 55. Nf2 {[%emt 0:01:56]} Kb7 {[%emt 0:00:38]} 56. Rg8 {[%emt 0:00:08]} Kb6 {[%emt 0:01:48]} 57. Rg6 {[%emt 0:00:27]} Kc7 {[%emt 0:00:24]} 58. Ne4 {[%emt 0:00:57]} Nxe4 {[%emt 0:00:51]} 59. Kxe4 {[%emt 0:00:04]} Rd2 {[%emt 0:00:23]} 60. Rxg5 {[%emt 0:00:20]} Rxa2 {[%emt 0:00:01]} 61. Kd3 {[%emt 0:01:35]} Kb6 {[%emt 0:01:15]} 62. Rg6+ {[%emt 0:00:10]} Kc5 {[%emt 0:00:05]} 63. Rg5+ {[%emt 0:00:05]} Kd6 {[%emt 0:00:05]} 64. Rh5 {[%emt 0:01:03]} Rg2 {[%emt 0:02:23]} 65. Kc4 {[%emt 0:01:01]} Rg3 {[%emt 0:00:44]} 66. Rxa5 {[%emt 0:01:43]} Rxh3 {[%emt 0:00:04]} 67. Rh5 {[%emt 0:00:04]} Rf3 {[%emt 0:00:46]} 68. Rxh4 {[%emt 0:00:22]} Rf4+ {[%emt 0:00:09]} 69. Kb5 {[%emt 0:00:05]} Kd5 {[%emt 0:00:20]} 70. Rh5+ {[%emt 0:00:25]} Kd6 {[%emt 0:00:35]} 71. Rg5 {[%emt 0:00:33]} Ke6 {[%emt 0:00:18]} 72. Rg6+ {[%emt 0:00:50]} Kf7 {[%emt 0:00:02]} 73. Rc6 {[%emt 0:00:41]} Rxg4 {[%emt 0:00:01]} 74. Rc4 {[%emt 0:00:08]} Rg8 {[%emt 0:00:01]} 75. Kxb4 {[%emt 0:00:22]} Ke6 {[%emt 0:00:16]} 76. Rc5 {[%emt 0:00:28]} Kd6 {[%emt 0:00:20]} 77. Kc4 {[%emt 0:00:32]} Kd7 {[%emt 0:01:32]} 78. b4 {[%emt 0:00:17]} Rc8 {[%emt 0:00:53]} 79. Rxc8 1/2-1/2

[Event "SixDays Budapest GM-B January 2024"]
[Site "Budapest"]
[Date "2024.02.01"]
[Round "9.1"]
[White "Pap, Misa"]
[Black "Grover, Sahaj"]
[Result "1/2-1/2"]
[ECO "C01"]
[WhiteElo "2422"]
[BlackElo "2503"]
[Annotator "ChessBase"]
[PlyCount "21"]
[EventDate "2024.01.26"]
[EventType "tourn"]
[EventCountry "HUN"]
[SourceTitle "playchess.com"]
[Source "ChessBase"]
[SourceQuality "1"]
[TimeControl "5400+30"]

1. e4 e6 2. d4 d5 3. exd5 exd5 4. Nf3 Bd6 5. Bd3 Ne7 6. O-O O-O 7. c3 Bf5 8. Bxf5 Nxf5 9. Re1 c6 10. Nbd2 Nd7 11. Nf1 1/2-1/2

[Event "SixDays Budapest GM-B January 2024"]
[Site "Budapest"]
[Date "2024.02.01"]
[Round "9.2"]
[White "Kaczur, Florian"]
[Black "Dau Khuong Duy"]
[Result "1-0"]
[ECO "A48"]
[WhiteElo "2506"]
[BlackElo "2309"]
[Annotator "ChessBase"]
[PlyCount "73"]
[EventDate "2024.01.26"]
[EventType "tourn"]
[EventCountry "HUN"]
[SourceTitle "playchess.com"]
[Source "ChessBase"]
[SourceQuality "1"]
[TimeControl "5400+30"]

1. d4 {[%emt 0:00:03]} Nf6 {[%emt 0:00:25]} 2. Nf3 {[%emt 0:00:14]} g6 {[%emt 0:00:13]} 3. Bf4 {[%emt 0:00:35]} Bg7 {[%emt 0:00:04]} 4. Nc3 {[%emt 0:00:24]} O-O {[%emt 0:03:19]} 5. e4 {[%emt 0:00:31]} d6 {[%emt 0:01:53]} 6. Qd2 {[%emt 0:00:17]} Bg4 {[%emt 0:02:34]} 7. O-O-O {[%emt 0:03:29]} Nc6 {[%emt 0:05:00]} 8. Qe3 {[%emt 0:00:05]} Nd7 {[%emt 0:08:02]} 9. Bh6 {[%emt 0:14:45]} e6 {[%emt 0:11:53]} 10. h4 {[%emt 0:04:30]} Bxh6 {[%emt 0:12:11]} 11. Qxh6 {[%emt 0:00:21]} Qf6 {[%emt 0:00:29]} 12. Qe3 {[%emt 0:06:22]} Nb6 {[%emt 0:04:40]} 13. e5 {[%emt 0:21:49]} Qg7 {[%emt 0:15:54]} 14. Re1 {[%emt 0:02:03]} Nd5 {[%emt 0:01:05]} 15. Nxd5 {[%emt 0:05:52]} exd5 {[%emt 0:00:07]} 16. Nh2 {[%emt 0:09:57]} Bd7 {[%emt 0:07:40]} 17. h5 {[%emt 0:00:17]} dxe5 {[%emt 0:00:44]} 18. dxe5 {[%emt 0:00:51]} Rae8 {[%emt 0:03:37]} 19. Nf3 {[%emt 0:02:02]} f6 {[%emt 0:06:59]} 20. hxg6 {[%emt 0:00:14]} hxg6 {[%emt 0:00:07]} 21. Qd2 {[%emt 0:01:02]} Qf7 {[%emt 0:02:54]} 22. Bb5 {[%emt 0:06:14]} Bg4 {[%emt 0:03:41]} 23. Nd4 {[%emt 0:02:26]} Rxe5 {[%emt 0:03:06]} 24. Bxc6 {[%emt 0:01:19]} bxc6 {[%emt 0:00:26]} 25. Nxc6 {[%emt 0:00:10]} Re6 {[%emt 0:01:00]} 26. Rxe6 {[%emt 0:01:23]} Bxe6 {[%emt 0:00:05]} 27. Qb4 {[%emt 0:02:06]} Re8 {[%emt 0:00:23]} 28. Re1 {[%emt 0:02:48]} Qd7 {[%emt 0:00:46]} 29. Nxa7 {[%emt 0:02:23]} Bf7 {[%emt 0:01:40]} 30. Rxe8+ {[%emt 0:00:54]} Qxe8 {[%emt 0:00:32]} 31. b3 {[%emt 0:00:25]} Kg7 {[%emt 0:00:26]} 32. Qd4 {[%emt 0:00:52]} Qe2 {[%emt 0:01:22]} 33. Kb2 {[%emt 0:00:48]} g5 {[%emt 0:00:03]} 34. Qe3 {[%emt 0:00:31]} Qd1 {[%emt 0:00:58]} 35. Nb5 {[%emt 0:00:51]} Bg6 {[%emt 0:00:27]} 36. Qc5 {[%emt 0:00:40]} c6 {[%emt 0:01:20]} 37. Nd4 {[%emt 0:00:10]} 1-0

[Event "SixDays Budapest GM-B January 2024"]
[Site "Budapest"]
[Date "2024.02.01"]
[Round "9.4"]
[White "Coenen, Michael"]
[Black "Celik, Hasan Huseyin"]
[Result "1/2-1/2"]
[ECO "B47"]
[WhiteElo "2330"]
[BlackElo "2436"]
[Annotator "ChessBase"]
[PlyCount "66"]
[EventDate "2024.01.26"]
[EventType "tourn"]
[EventCountry "HUN"]
[SourceTitle "playchess.com"]
[Source "ChessBase"]
[SourceQuality "1"]
[TimeControl "5400+30"]

1. e4 {[%emt 0:00:02]} c5 {[%emt 0:03:42]} 2. Nf3 {[%emt 0:00:15]} e6 {[%emt 0:00:05]} 3. d4 {[%emt 0:02:02]} cxd4 {[%emt 0:00:04]} 4. Nxd4 {[%emt 0:00:02]} Nc6 {[%emt 0:00:07]} 5. Nc3 {[%emt 0:00:26]} Qc7 {[%emt 0:00:05]} 6. g3 {[%emt 0:02:42]} a6 {[%emt 0:00:23]} 7. Bg2 {[%emt 0:00:10]} Nf6 {[%emt 0:00:05]} 8. O-O {[%emt 0:00:49]} Nxd4 {[%emt 0:00:04]} 9. Qxd4 {[%emt 0:00:04]} Bc5 {[%emt 0:00:03]} 10. Qd3 {[%emt 0:01:36]} Ng4 {[%emt 0:11:17]} 11. Bf4 {[%emt 0:06:45]} Ne5 {[%emt 0:00:33]} 12. Bxe5 {[%emt 0:06:05]} Qxe5 {[%emt 0:00:17]} 13. Rad1 {[%emt 0:00:36]} h5 {[%emt 0:24:40]} 14. Kh1 {[%emt 0:07:09]} h4 {[%emt 0:00:11]} 15. f4 {[%emt 0:00:18]} hxg3 {[%emt 0:00:29]} 16. Qxg3 {[%emt 0:01:34]} Qh5 {[%emt 0:00:02]} 17. Nd5 {[%emt 0:13:54]} Kf8 {[%emt 0:07:31]} 18. h3 {[%emt 0:00:19]} d6 {[%emt 0:00:50]} 19. Nc7 {[%emt 0:08:56]} Rb8 {[%emt 0:04:10]} 20. f5 {[%emt 0:00:34]} exf5 {[%emt 0:08:05]} 21. Rxd6 {[%emt 0:05:01]} Bxd6 {[%emt 0:10:38]} 22. Qxd6+ {[%emt 0:00:05]} Kg8 {[%emt 0:00:01]} 23. Nd5 {[%emt 0:05:56]} Ra8 {[%emt 0:00:30]} 24. exf5 {[%emt 0:11:03]} Kh7 {[%emt 0:00:34]} 25. Ne7 {[%emt 0:09:39]} Re8 {[%emt 0:03:57]} 26. Rf4 {[%emt 0:00:32]} Qg5 {[%emt 0:01:59]} 27. f6 {[%emt 0:02:53]} gxf6 {[%emt 0:03:20]} 28. Nd5 {[%emt 0:10:11]} Re1+ {[%emt 0:04:26]} 29. Kh2 {[%emt 0:00:02]} Qe5 {[%emt 0:01:12]} 30. Nxf6+ {[%emt 0:03:25]} Kg7 {[%emt 0:00:02]} 31. Ne8+ {[%emt 0:02:10]} Qxe8 {[%emt 0:05:33]} 32. Qf6+ {[%emt 0:00:02]} Kg8 {[%emt 0:00:34]} 33. Qg5+ {[%emt 0:00:12]} Kf8 {[%emt 0:00:06]} 1/2-1/2